bitfinex-derivatives/quotes_ETHF0:USTF0_20251013
["timestamp","ask_amount","ask_price","bid_price","bid_amount"]
[1760315483435,0.00233294,4142.0,4141.9,4.30919]
[1760315485034,0.00723,4143.3,4143.2,0.43405]
[1760315485339,1e-05,4143.3,4143.2,1.10125]
[1760315485640,1e-05,4143.3,4143.2,0.43405]
[1760315486341,0.00305368,4143.3,4143.2,1.10412422]
[1760315489142,3.68e-06,4143.3,4143.2,1.10412422]
[1760315489837,4.14658456,4145.2,4144.5,0.6672]
[1760315490039,0.6667,4145.6,4144.7,0.43389]
[1760315490338,0.6667,4145.6,4144.5,0.9184]
[1760315490339,3.0833592,4144.9,4144.8,1.10108]
[1760315490536,47.2183592,4145.5,4145.1,0.43385]
[1760315490735,0.6667,4145.4,4145.1,0.43385]
[1760315490936,3.86955473,4145.2,4145.1,0.43385]
[1760315491142,3.86955473,4145.2,4143.9,3.2078]
[1760315491143,0.655,4144.9,4143.9,3.2078]
[1760315491333,4.14658456,4144.6,4143.9,3.2078]
[1760315491535,3.2078,4144.7,4143.2,0.00287422]
[1760315491536,0.655,4143.9,4143.2,0.00287422]
[1760315491737,0.655,4143.3,4143.2,0.00287422]
[1760315492148,41.455,4143.3,4142.0,0.6103]
[1760315492360,0.655,4142.7,4142.0,0.6103]
[1760315492548,0.655,4142.7,4141.1,2.7986736]
[1760315492549,0.655,4142.1,4141.4,3.2078]
[1760315492842,3.33171124,4142.0,4140.9,3.2078]
[1760315493039,0.655,4141.9,4140.9,3.21073189]
[1760315493437,3.07481124,4141.8,4141.6,0.43422]
[1760315493646,0.655,4141.7,4141.6,0.43422]
[1760315494039,3.85857788,4141.7,4141.6,0.43422]
[1760315494236,0.655,4141.6,4140.9,0.00293189]
[1760315494437,10.55796244,4141.7,4140.9,0.00293189]
[1760315494438,8.12918456,4141.0,4140.9,0.00293189]
[1760315494640,0.655,4140.9,4139.2,3.2078]
[1760315494836,7.47418456,4141.0,4139.0,0.43448]
[1760315494837,0.2569,4140.0,4139.0,0.43448]
[1760315495045,0.655,4139.4,4138.8,0.43451]
[1760315495343,0.655,4139.2,4139.0,0.43449]
[1760315495539,3.12299,4139.3,4138.7,3.64231]
[1760315495745,3.77799,4139.1,4138.9,0.4345]
[1760315496043,0.00275512,4139.1,4138.7,3.2078]
[1760315496245,3.79389304,4139.0,4138.7,3.64232]
[1760315496650,3.13889304,4139.0,4138.7,3.64232]
[1760315496848,3.79389304,4139.0,4138.7,3.64232]
[1760315497346,3.79389304,4139.0,4138.9,0.4345]
[1760315498450,0.65775512,4139.1,4138.9,0.43449]
[1760315498651,0.655,4139.0,4138.7,3.2078]
[1760315498951,0.00275512,4139.1,4138.7,3.2078]
[1760315499244,0.655,4139.0,4138.7,3.64231]
[1760315499448,3.10432928,4139.0,4138.4,0.43454]
[1760315499638,0.655,4138.9,4138.2,3.2078]
[1760315499843,0.655,4138.9,4138.3,0.43456]
[1760315500044,3.0862877,4138.8,4138.6,0.43452]
[1760315500245,0.655,4138.7,4138.2,3.2078]
[1760315500445,0.655,4138.7,4138.6,0.43452]
[1760315500847,0.655,4138.6,4138.4,0.43454]
[1760315501052,0.655,4138.6,4138.5,0.43453]
[1760315501544,0.655,4138.6,4137.7,3.20938451]
[1760315501545,0.655,4138.4,4137.7,3.20938451]
[1760315501752,0.655,4138.4,4138.1,0.43459]
[1760315501947,0.655,4138.2,4138.1,0.43459]
[1760315502252,3.8353883,4138.2,4138.1,0.43459]
[1760315503549,3.1803883,4138.2,4138.1,0.43459]
[1760315503849,40.8,4138.4,4138.3,0.43456]
[1760315503850,41.455,4138.4,4138.3,0.43456]
[1760315504251,44.56236314,4138.4,4138.3,0.43456]
[1760315504547,0.7748,4139.0,4138.3,0.43456]
[1760315504740,0.7748,4139.0,4138.9,0.4345]
[1760315505149,3.85709342,4139.0,4138.9,0.4345]
[1760315505750,0.655,4138.9,4138.2,3.2078]
[1760315505955,44.25649342,4139.0,4138.0,0.43459]
[1760315505956,0.7748,4138.5,4138.0,0.43459]
[1760315506142,0.655,4138.4,4137.7,0.00158451]
[1760315506341,0.655,4138.3,4138.2,0.43457]
[1760315506752,3.85868734,4138.3,4138.2,0.43457]
[1760315508753,3.85868734,4138.3,4138.0,0.43459]
[1760315508955,0.6402,4138.2,4138.1,0.43458]
[1760315509248,0.6402,4138.2,4137.7,0.00158451]
[1760315509249,6.92823119,4138.2,4137.7,0.00158451]
[1760315509553,0.6402,4137.4,4136.9,0.43471]
[1760315509852,0.2544,4137.0,4136.8,0.43472]
[1760315510045,0.6402,4136.9,4136.8,0.43472]
[1760315510242,3.80053228,4136.9,4136.8,0.43472]
[1760315510448,3.16033228,4136.9,4136.6,0.43474]
[1760315510641,3.16033228,4136.9,4136.1,3.2078]
[1760315510642,4.14658456,4136.7,4136.1,3.2078]
[1760315510845,0.6402,4136.6,4136.4,0.43476]
[1760315511142,0.6402,4136.5,4136.2,0.43478]
[1760315511345,0.1131,4136.5,4136.2,0.43478]
[1760315511545,0.1131,4136.5,4135.2,1.32905335]
[1760315511546,0.6138,4136.3,4135.4,3.2078]
[1760315511745,0.6138,4136.1,4136.0,0.4348]
[1760315511954,0.61650042,4136.1,4136.0,0.4348]
[1760315512153,0.61650042,4136.1,4135.4,3.2078]
[1760315512154,0.6138,4135.9,4135.7,0.43483]
[1760315512455,0.7477,4135.5,4135.2,0.24182335]
[1760315512758,3.78240374,4135.4,4135.2,0.24182335]
[1760315512944,3.78240374,4135.4,4135.3,3.64268]
[1760315513143,0.61650042,4136.1,4136.0,0.43481]
[1760315513551,2.61211573,4136.1,4136.0,1.04331]
[1760315513851,4.14658456,4137.9,4137.3,0.43466]
[1760315514047,0.6138,4137.8,4137.7,0.43462]
[1760315514552,3.80305266,4137.8,4137.7,0.43732042]
[1760315514754,3.80305266,4137.8,4137.7,0.00270042]
[1760315517352,3.8216,4138.5,4137.7,0.61120042]
[1760315517557,0.6138,4139.0,4138.9,0.4345]
[1760315517853,7.83417396,4139.0,4138.9,0.4345]
[1760315518057,0.1419,4138.5,4138.3,0.43455]
[1760315518252,0.6138,4138.3,4138.2,0.43457]
[1760315518458,0.61650796,4138.3,4138.2,0.43457]
[1760315518661,3.07649736,4138.3,4138.2,0.43458]
[1760315518862,3.69029736,4138.3,4138.2,0.43458]
[1760315520351,0.6138,4138.2,4137.7,0.00270042]
[1760315520552,0.2438,4137.5,4136.6,3.2078]
[1760315520860,0.1131,4137.0,4136.5,0.43475]
[1760315521062,0.1131,4137.0,4136.7,0.43473]
[1760315521251,3.1322786,4136.9,4136.7,0.43473]
[1760315521452,3.1322786,4136.9,4136.7,1.04516493]
[1760315521664,3.1322786,4137.2,4137.1,1.04319]
[1760315521958,3.2078,4138.0,4137.9,0.43461]
[1760315522165,0.6138,4138.4,4138.2,0.43458]
[1760315522662,3.2078,4138.7,4138.2,0.43458]
[1760315522663,7.96e-06,4138.3,4138.2,0.43458]
[1760315522862,7.96e-06,4138.3,4138.2,1.04308]
[1760315526563,41.4138,4139.8,4139.7,0.43442]
[1760315527059,41.4138,4139.8,4139.7,1.04292]
[1760315527060,3.17586814,4139.8,4139.7,1.04292]
[1760315527261,0.6138,4140.9,4140.7,0.4343]
[1760315527464,0.6138,4140.9,4140.2,0.6085]
[1760315527465,4.14658456,4140.8,4140.2,0.43436]
[1760315527655,4.14658456,4140.8,4140.2,0.00234751]
[1760315527656,3.17586814,4140.3,4140.2,0.00234751]
[1760315527859,4.76038456,4140.3,4140.2,0.00234751]
[1760315528057,0.6138,4140.3,4140.2,0.00234751]
[1760315528360,3.7550077,4140.3,4140.2,0.00234751]
[1760315529263,3.1412077,4140.3,4140.2,0.00234751]
[1760315529573,0.6138,4140.3,4140.2,0.00234751]
[1760315529957,44.53356437,4140.3,4140.2,0.00234751]
[1760315531467,44.53356437,4140.3,4140.2,0.43671751]
[1760315531468,3.11976437,4140.3,4140.2,0.43671751]
[1760315531771,0.00276601,4140.9,4140.3,1.08589]
[1760315531970,0.00276601,4140.9,4140.8,0.4343]
[1760315532368,3.77885997,4140.9,4140.8,0.4343]
[1760315532567,0.6138,4140.8,4140.3,0.43435]
[1760315532864,0.6138,4140.6,4140.4,0.43433]
[1760315533166,7.30887852,4140.7,4140.4,0.43433]
[1760315533167,3.08840021,4140.5,4140.4,0.43433]
[1760315533366,3.70220021,4140.5,4140.4,0.43433]
[1760315533567,0.6138,4140.5,4140.4,0.43433]
[1760315533767,3.70220021,4140.5,4140.4,0.43433]
[1760315534360,3.70220021,4140.5,4139.2,3.2078]
[1760315534361,0.6138,4140.3,4139.2,3.2078]
[1760315534559,0.6138,4140.3,4138.1,1.08645]
[1760315534560,0.6138,4139.2,4138.9,0.4345]
[1760315534769,0.6138,4139.8,4138.9,3.8163]
[1760315534963,0.6138,4140.3,4139.6,3.2078]
[1760315535264,3.20246084,4139.9,4139.8,0.6085]
[1760315535564,3.2078,4140.6,4140.0,0.43438]
[1760315535565,0.6138,4140.1,4140.0,0.43438]
[1760315535968,0.6138,4140.0,4139.8,0.00205078]
[1760315536163,0.6138,4140.0,4139.0,0.43449]
[1760315536164,0.43443,4139.6,4139.0,0.43449]
[1760315536365,0.6138,4139.3,4138.5,0.43454]
[1760315536669,0.2442,4139.5,4137.7,0.43462]
[1760315536670,0.1132,4138.5,4137.7,0.43462]
[1760315536971,3.18400577,4138.4,4137.9,0.4346]
[1760315537172,3.2078,4138.2,4137.4,3.8163]
[1760315537379,3.2078,4138.2,4137.9,0.4346]
[1760315537560,3.79780577,4138.1,4138.0,0.43459]
[1760315537868,0.6138,4138.1,4138.0,0.43459]
[1760315538272,3.68879931,4138.1,4138.0,0.43459]
[1760315539669,0.5764,4139.0,4138.6,0.43453]
[1760315539670,0.6138,4138.7,4138.6,0.43453]
[1760315539872,0.6138,4138.7,4138.3,0.43456]
[1760315540070,3.78456278,4138.7,4138.5,0.43454]
[1760315540574,0.6138,4139.1,4138.8,0.4345]
[1760315540780,3.2078,4139.3,4139.2,1.04297]
[1760315540980,3.2078,4140.1,4139.2,1.04297]
[1760315541172,5.95538803,4140.6,4138.4,3.2078]
[1760315541173,3.76007511,4139.3,4138.4,3.2078]
[1760315541379,0.6138,4139.0,4138.8,0.43451]
[1760315541573,3.2078,4139.1,4138.8,0.43451]
[1760315541775,0.6442,4138.8,4138.1,0.43459]
[1760315542073,0.1227,4139.0,4137.5,0.2593]
[1760315542074,0.6442,4138.3,4138.2,0.43457]
[1760315542275,0.6442,4138.3,4137.5,0.2593]
[1760315542474,3.07657753,4138.3,4137.9,0.4346]
[1760315542872,3.07657753,4138.3,4137.4,3.8455]
[1760315543071,3.07657753,4138.3,4138.2,1.07228]
[1760315543272,3.2078,4139.0,4138.9,0.4345]
[1760315543677,6.29845991,4139.0,4138.9,0.4345]
[1760315543877,6.29845991,4139.0,4138.9,1.0722]
[1760315544085,6.29845991,4139.0,4138.2,0.6377]
[1760315544288,3.09065991,4139.0,4138.8,0.4345]
[1760315544677,3.2078,4139.0,4138.8,0.4345]
[1760315544884,0.43454,4138.6,4137.8,0.43461]
[1760315545174,3.2078,4138.2,4137.3,3.2078]
[1760315545376,0.04397568,4139.9,4139.3,1.08614]
[1760315545580,0.00276601,4140.9,4140.5,0.43433]
[1760315545773,0.00276601,4140.9,4140.8,3.2078]
[1760315546170,10.34756978,4140.9,4140.8,1.8404]
[1760315546370,10.34756978,4140.9,4140.8,2.2747]
[1760315546977,10.34756978,4140.9,4140.8,1.8404]
[1760315547180,9.70336978,4140.9,4140.8,3.2078]
[1760315547772,0.6442,4140.0,4139.1,1.72511326]
[1760315547977,0.6442,4140.0,4139.9,3.2078]
[1760315548379,47.73462216,4140.0,4139.9,3.2078]
[1760315548572,47.35682216,4140.0,4139.4,3.64224]
[1760315548774,44.1581837,4140.0,4139.4,3.64224]
[1760315548977,0.8859,4139.5,4139.4,3.64224]
[1760315549474,4.04571472,4139.5,4139.4,3.64224]
[1760315549677,41.7106,4140.0,4139.9,0.4344]
[1760315549875,41.7106,4140.0,4139.9,3.2078]
[1760315550086,48.09440184,4140.0,4139.9,3.2078]
[1760315550476,1.0786,4139.9,4139.3,3.2078]
[1760315550677,0.8859,4139.4,4139.3,3.2078]
[1760315550878,3.18516338,4139.8,4139.7,0.43442]
[1760315551085,6.22178803,4141.0,4139.7,0.43442]
[1760315551086,3.4742,4141.5,4140.7,0.43431]
[1760315551287,3.84283846,4140.8,4140.7,0.43431]
[1760315551985,41.4442,4141.4,4140.7,0.43431]
[1760315552176,6.01e-06,4140.9,4140.8,0.6377]
[1760315552985,40.8,4142.4,4140.8,6.59308803]
[1760315553279,40.8,4142.4,4142.3,0.43415]
[1760315553479,0.43406,4143.1,4142.7,0.4341]
[1760315553480,0.6442,4143.1,4142.7,0.4341]
[1760315553784,3.74627588,4142.9,4142.7,3.2078]
[1760315553987,0.8859,4142.8,4142.2,3.2078]
[1760315554180,3.60113846,4142.8,4142.7,3.21061978]
[1760315554384,0.6442,4142.8,4142.7,3.21061978]
[1760315554578,3.84283846,4142.8,4142.7,3.21061978]
[1760315554779,3.84283846,4142.8,4142.7,0.00281978]
[1760315555281,6.97362019,4142.8,4142.7,0.00281978]
[1760315555781,6.97362019,4142.8,4141.7,3.64201]
[1760315555782,0.2417,4142.3,4141.7,3.64201]
[1760315555986,0.2417,4141.9,4141.7,3.64201]
[1760315556181,0.6442,4141.8,4141.7,0.43421]
[1760315557489,0.6442,4141.8,4141.2,3.2078]
[1760315557490,4.06530267,4141.8,4141.2,3.2078]
[1760315557679,1.07845,4141.3,4141.2,3.2078]
[1760315557876,1.07845,4141.3,4140.6,3.64212]
[1760315557877,0.43427,4141.2,4140.6,3.64212]
[1760315558083,0.2417,4140.8,4140.4,0.43434]
[1760315558386,3.15681209,4141.1,4140.8,0.6377]
[1760315558587,3.2078,4142.7,4141.1,1.08568]
[1760315558884,0.2417,4142.4,4142.1,0.6377]
[1760315559076,3.20337706,4142.6,4142.0,3.2078]
[1760315559276,0.2417,4142.1,4142.0,3.2078]
[1760315559782,3.44507706,4142.1,4142.0,3.2078]
[1760315560387,3.99327706,4142.1,4141.5,3.2078]
[1760315560688,0.4342,4141.8,4141.5,3.2078]
[1760315560882,3.20337706,4142.1,4141.6,0.6377]
[1760315561082,3.20337706,4142.1,4142.0,3.2078]
[1760315561288,40.8,4142.8,4142.6,0.43411]
[1760315561479,0.5482,4143.3,4142.8,0.6377]
[1760315561679,3.2078,4143.7,4142.6,3.2078]
[1760315561875,0.2417,4142.7,4142.6,3.2078]
[1760315562085,1.224,4142.7,4142.6,3.2078]
[1760315562384,3.55946824,4142.7,4142.6,3.2078]
[1760315562884,0.43414,4142.4,4142.1,3.2078]
[1760315563190,0.2417,4142.2,4142.1,3.2078]
[1760315563586,3.69401989,4142.2,4142.1,3.2078]
[1760315564385,3.14581989,4142.2,4142.1,4.001]
[1760315564587,0.00226036,4142.9,4142.4,0.43413]
[1760315564891,3.09438717,4142.8,4142.1,3.2078]
[1760315565091,0.9766,4142.2,4142.1,3.2078]
[1760315565484,3.89446894,4142.2,4142.1,3.2078]
[1760315565988,0.7349,4141.8,4141.6,3.2078]
[1760315566388,3.14769603,4141.7,4141.6,4.001]
[1760315566789,3.14769603,4141.8,4141.6,4.001]
[1760315566988,1.41081,4141.7,4141.6,3.2078]
[1760315567386,4.30017377,4141.7,4141.6,3.2078]
[1760315567692,3.13106377,4142.3,4141.3,0.0598]
[1760315567693,0.43418,4142.1,4141.3,0.0598]
[1760315567880,0.43416,4142.2,4141.8,0.43419]
[1760315568084,3.15469847,4141.9,4141.8,0.7932]
[1760315568486,0.43415,4142.3,4142.0,1.22737]
[1760315568684,0.43415,4142.3,4142.1,4.001]
[1760315568889,3.58884847,4142.3,4142.1,3.2078]
[1760315569084,3.83054847,4142.3,4142.1,3.2078]
[1760315569286,0.9766,4142.2,4141.6,0.43421]
[1760315569480,0.2417,4141.7,4141.5,3.2078]
[1760315569889,0.7349,4141.7,4141.5,3.2078]
[1760315570090,0.43421,4141.8,4141.5,3.2078]
[1760315570091,0.43421,4141.8,4141.5,3.64202]
[1760315570290,0.2417,4141.7,4141.5,3.64202]
[1760315570494,3.32583705,4141.7,4141.5,3.64202]
[1760315570795,0.7349,4141.5,4141.3,0.0598]
[1760315571093,3.1700619,4141.4,4141.3,0.0598]
[1760315571594,1.71471137,4144.6,4141.3,0.853]
[1760315571595,0.7532,4142.2,4141.3,0.853]
[1760315571899,3.2078,4142.6,4141.3,0.0598]
[1760315571900,4.1649619,4141.4,4141.3,0.0598]
[1760315572091,0.9949,4141.4,4141.3,0.0598]
[1760315572292,0.7532,4141.4,4141.3,0.0598]
[1760315572492,3.89258529,4141.4,4141.3,0.0598]
[1760315572692,44.69258529,4141.4,4141.3,0.0598]
[1760315573097,44.69258529,4141.4,4140.4,3.2078]
[1760315573098,0.43433,4140.5,4140.4,3.2078]
[1760315573399,4.33757543,4140.5,4140.4,3.2078]
[1760315573589,4.57927543,4140.5,4140.4,3.2078]
[1760315574398,40.8,4141.4,4140.5,0.3046]
[1760315574597,3.2078,4142.6,4141.6,1.08555]
[1760315574799,0.703,4142.8,4141.8,0.7426]
[1760315575095,3.13318972,4142.3,4142.2,0.43416]
[1760315575302,3.13318972,4142.5,4142.2,0.43416]
[1760315575303,0.703,4142.5,4142.2,0.43416]
[1760315575602,3.33772959,4142.3,4142.2,0.43416]
[1760315575993,40.8,4142.4,4142.2,0.43416]
[1760315576300,3.35402424,4142.3,4142.2,0.43416]
[1760315576592,3.35402424,4142.3,4141.7,3.2078]
[1760315576798,0.43418,4142.0,4141.7,3.2078]
[1760315577002,1.13719,4141.9,4141.7,3.2078]
[1760315577198,4.32551483,4141.9,4141.7,3.2078]
[1760315577393,1.37889,4141.9,4141.7,3.2078]
[1760315577588,3.18832483,4142.0,4141.7,3.2078]
[1760315577589,41.503,4142.4,4141.7,3.2078]
[1760315577901,0.2417,4142.1,4142.0,0.43417]
[1760315578094,0.2417,4142.1,4141.8,1.17679]
[1760315578297,3.12488728,4142.1,4141.9,0.43418]
[1760315578996,0.43419,4141.9,4141.7,3.2078]
[1760315579299,3.18938888,4141.8,4141.7,3.2078]
[1760315580097,0.9447,4141.8,4141.7,3.2078]
[1760315580597,4.10645001,4141.8,4141.7,3.2078]
[1760315580800,0.43419,4141.9,4141.7,3.2078]
[1760315580801,3.2078,4143.1,4142.3,0.43414]
[1760315581097,3.2078,4143.1,4141.7,3.2078]
[1760315581098,3.12217593,4142.7,4142.6,0.43411]
[1760315581297,3.12217593,4142.7,4142.2,3.2078]
[1760315581298,0.703,4142.6,4142.2,3.2078]
[1760315581497,0.00226036,4142.9,4142.3,0.7426]
[1760315581693,3.12217593,4142.5,4142.2,4.93234281]
[1760315581895,0.9447,4142.7,4142.4,0.43413]
[1760315581896,3.12217593,4142.6,4142.4,0.43413]
[1760315582090,0.43411,4142.7,4142.5,0.7426]
[1760315582296,1.13713,4142.5,4142.3,1.72454281]
[1760315582496,0.703,4142.4,4142.2,3.2078]
[1760315582694,1.13715,4142.3,4142.2,3.2078]
[1760315582891,3.84371999,4142.3,4142.2,3.2078]
[1760315583408,3.84371999,4142.3,4141.5,1.0472]
[1760315583409,0.43419,4141.9,4141.7,3.2078]
[1760315583702,3.79152348,4141.8,4141.7,3.2078]
[1760315583894,4.03322348,4141.8,4141.7,3.2078]
[1760315584094,0.43426,4141.2,4141.0,4.93234281]
[1760315584295,1.13726,4141.2,4141.0,3.2078]
[1760315584494,3.20142398,4141.1,4141.0,3.2078]
[1760315584703,3.20142398,4141.1,4141.0,4.93234281]
[1760315584899,0.43428,4141.0,4140.9,1.72454281]
[1760315585099,0.703,4140.7,4140.6,1.72454281]
[1760315585294,1.13732,4140.6,4140.5,3.2078]
[1760315585697,4.33749552,4140.6,4140.5,3.2078]
[1760315585893,0.43439,4140.0,4139.9,4.93234281]
[1760315586100,1.38130498,4140.0,4139.9,3.2078]
[1760315586294,0.43443,4139.6,4139.4,1.72454281]
[1760315586498,0.2417,4139.5,4139.4,1.72454281]
[1760315586702,3.44003768,4139.5,4139.4,1.72454281]
[1760315587097,3.44003768,4139.5,4139.3,3.2078]
[1760315587098,3.87448768,4139.5,4139.3,3.2078]
[1760315587298,40.8,4139.4,4139.3,3.2078]
[1760315587504,40.8,4139.4,4139.3,4.93234281]
[1760315587704,0.00221498,4140.0,4139.6,0.7426]
[1760315588006,0.00221498,4140.0,4139.3,3.2078]
[1760315588007,0.2417,4139.5,4139.3,4.93597118]
[1760315588208,0.2417,4139.8,4139.4,0.7426]
[1760315588401,0.00221498,4140.0,4139.9,0.7426]
[1760315588611,0.00221498,4140.0,4139.9,3.9504]
[1760315589710,0.00221498,4140.0,4139.9,5.6770788]
[1760315590400,0.00221498,4140.0,4139.9,3.9504]
[1760315591803,0.703,4141.5,4139.9,3.9504]
[1760315592005,0.43415,4142.3,4141.2,2.46875953]
[1760315592197,0.2417,4142.1,4142.0,0.7426]
[1760315592401,0.2417,4142.1,4141.7,3.2078]
[1760315592602,3.12448195,4142.4,4142.1,0.43417]
[1760315592805,0.2417,4142.3,4142.2,0.7426]
[1760315593206,0.2417,4142.3,4142.1,0.43648422]
[1760315593207,0.2417,4142.3,4142.1,0.00231422]
[1760315593413,0.43421,4141.7,4141.2,4.93395953]
[1760315593600,0.4342,4141.8,4141.4,0.43423]
[1760315593806,3.19035614,4141.6,4141.2,3.64206]
[1760315594002,0.2417,4141.4,4141.3,0.7426]
[1760315594412,0.4342,4141.8,4141.4,0.43424]
[1760315594616,1.1394,4141.8,4141.4,0.43424]
[1760315594912,1.1394,4141.8,4141.7,3.9504]
[1760315594913,3.11367071,4141.8,4141.7,3.9504]
[1760315595108,0.00257645,4142.4,4141.7,3.9504]
[1760315595109,0.00257645,4142.4,4142.0,0.3046]
[1760315595412,0.00257645,4142.4,4142.1,0.7426]
[1760315595711,0.00257645,4142.4,4142.3,1.17675]
[1760315595911,0.24427645,4142.4,4142.3,1.17675]
[1760315596213,0.00257645,4142.4,4142.3,1.17675]
[1760315597513,0.00257645,4142.4,4142.2,3.64195]
[1760315597715,0.00257645,4142.4,4142.3,0.7426]
[1760315598209,3.913,4144.2,4142.3,0.7426]
[1760315598416,0.43399,4143.8,4143.5,0.43401]
[1760315598709,3.16289854,4143.6,4143.2,3.2078]
[1760315598909,0.2417,4143.3,4143.2,3.2078]
[1760315599309,0.2417,4143.3,4143.2,3.95158076]
[1760315599310,0.0027414,4143.3,4143.2,3.95158076]
[1760315600507,3.41887314,4143.3,4143.2,3.20898076]
[1760315601108,3.41887314,4143.3,4143.2,0.00118076]
[1760315601109,4.12417314,4143.3,4143.2,0.00118076]
[1760315601615,44.92417314,4143.3,4143.2,0.00118076]
[1760315602307,44.21887314,4143.3,4143.2,0.00118076]
[1760315602509,43.97717314,4143.3,4143.2,0.75198076]
[1760315602817,3.85291314,4143.3,4143.2,0.75198076]
[1760315603008,4.53251314,4143.3,4143.2,0.00118076]
[1760315603708,0.6796,4143.0,4142.6,3.2078]
[1760315603915,1.11376,4142.2,4142.1,3.2078]
[1760315604215,4.25632966,4142.2,4142.1,3.2078]
[1760315604914,3.14256966,4142.2,4142.1,3.9586]
[1760315605105,3.82216966,4142.2,4142.1,3.2078]
[1760315605312,0.4342,4141.8,4141.7,0.7508]
[1760315605615,0.6759,4141.8,4141.7,0.7508]
[1760315605813,0.4342,4141.8,4141.7,0.7508]
[1760315607607,0.6796,4141.7,4141.6,3.2078]
[1760315607815,0.2417,4141.7,4141.6,3.2078]
[1760315608113,3.1052616,4141.7,4141.6,3.2078]
[1760315608308,5.27060242,4142.4,4141.6,3.2078]
[1760315608309,0.6796,4142.8,4142.1,0.7508]
[1760315608510,3.2078,4143.1,4142.3,3.9586]
[1760315608717,0.43415,4142.3,4142.1,0.7508]
[1760315609013,0.67585,4142.3,4142.1,0.7508]
[1760315609217,3.44401031,4142.2,4141.8,3.2078]
[1760315609515,0.43417,4142.1,4141.9,0.7508]
[1760315609720,0.2417,4141.9,4141.8,3.2078]
[1760315610019,0.43418,4142.0,4141.8,3.2078]
[1760315610213,0.43418,4142.0,4141.9,0.7508]
[1760315610715,41.23413,4142.5,4141.8,3.2078]
[1760315610910,0.43411,4142.7,4142.1,0.7508]
[1760315611212,0.2417,4142.8,4142.7,0.7508]
[1760315611411,40.8,4143.2,4142.6,0.43411]
[1760315611716,0.2417,4142.8,4142.7,0.7508]
[1760315612219,0.2417,4142.8,4142.4,0.7508]
[1760315612220,0.43412,4142.6,4142.4,0.7508]
[1760315612420,3.1002123,4142.8,4142.3,3.2078]
[1760315612619,0.2417,4142.4,4142.3,3.2078]
[1760315613011,0.6796,4142.7,4142.3,3.2078]
[1760315613212,4.52828593,4142.4,4142.3,3.2078]
[1760315613514,1.35543,4142.4,4142.3,3.2078]
[1760315613819,0.43419,4141.9,4141.8,3.9586]
[1760315614020,0.43419,4141.9,4141.8,3.2078]
[1760315614021,1.35549,4141.9,4141.8,3.2078]
[1760315614211,3.85245593,4141.9,4141.3,3.2078]
[1760315614413,0.43422,4141.6,4141.3,3.64205]
[1760315614721,3.85245593,4141.9,4141.3,3.2078]
[1760315614722,0.2417,4141.5,4141.3,3.2078]
[1760315614919,1.11384,4141.4,4141.3,3.2078]
[1760315615825,1.11384,4141.4,4140.5,2.46709942]
[1760315615826,0.6796,4141.3,4140.7,4.93229415]
[1760315616011,3.59928575,4141.4,4141.2,3.2078]
[1760315616319,0.67595,4141.4,4141.3,0.7508]
[1760315616512,3.06821868,4141.7,4141.6,0.7508]
[1760315616713,40.8,4142.4,4141.5,1.0602]
[1760315616909,40.8,4142.4,4141.3,2.47529415]
[1760315616910,0.6796,4142.2,4141.3,2.47529415]
[1760315617113,0.2417,4141.9,4141.8,0.7508]
[1760315617314,3.38136321,4142.1,4141.9,0.7508]
[1760315617623,3.13966321,4141.9,4141.8,0.43419]
[1760315617818,3.13966321,4141.9,4141.8,1.18499]
[1760315618122,0.43416,4142.2,4141.9,0.7508]
[1760315618312,0.2417,4142.1,4141.9,0.7508]
[1760315618520,3.43320989,4142.1,4141.9,1.72449415]
[1760315618718,44.4445914,4143.3,4142.9,0.43407]
[1760315618914,3.2105414,4143.3,4142.7,1.7268717]
[1760315619122,3.4522414,4143.3,4143.0,0.3094]
[1760315619420,3.6445914,4143.3,4143.1,0.7508]
[1760315619623,0.2417,4143.1,4142.9,1.7268717]
[1760315619926,0.2417,4143.0,4142.9,2.4776717]
[1760315620119,0.2417,4143.0,4142.9,0.7508]
[1760315620321,0.4367914,4143.3,4142.9,0.7508]
[1760315620623,0.2417,4143.0,4142.9,0.7508]
[1760315621116,3.36241475,4143.0,4142.6,5.36549942]
[1760315621317,0.2417,4142.7,4142.6,3.9586]
[1760315621511,0.6796,4142.7,4142.6,3.2078]
[1760315621711,3.83027519,4142.7,4142.6,3.2078]
[1760315622920,3.15067519,4142.7,4142.6,3.9586]
[1760315623224,3.13307503,4142.7,4142.6,3.9586]
[1760315623522,0.0027414,4143.3,4143.2,0.7508]
[1760315624020,0.0027414,4143.3,4143.2,3.9586]
[1760315624216,0.0027414,4143.3,4143.2,5.68712444]
[1760315624417,0.43393,4144.4,4143.3,0.7114]
[1760315624621,0.43393,4144.4,4143.2,5.36549942]
[1760315624622,3.8768,4145.2,4144.4,0.43393]
[1760315624818,3.19074816,4144.8,4144.6,0.4339]
[1760315625013,3.19074816,4145.1,4144.4,1.72827598]
[1760315625212,0.43387,4145.0,4144.5,0.7114]
[1760315625413,3.17082718,4144.7,4144.5,0.0019153]
[1760315625620,0.43389,4144.8,4144.6,0.7114]
[1760315625825,3.17082718,4144.6,4144.5,0.0019153]
[1760315626013,3.41252718,4144.6,4144.5,0.0019153]
[1760315626214,0.2417,4144.6,4144.5,0.0019153]
[1760315626418,3.33587918,4144.6,4144.5,0.0019153]
[1760315626620,9.2754816,4144.6,4144.5,0.0019153]
[1760315626819,3.33587918,4144.6,4144.5,0.0019153]
[1760315627014,3.33587918,4144.6,4144.5,0.7133153]
[1760315627218,3.09417918,4144.6,4144.5,1.0009153]
[1760315627415,3.33587918,4144.6,4144.5,0.0019153]
[1760315627619,0.9107,4144.6,4144.5,0.0019153]
[1760315627818,4.10050689,4144.6,4144.5,0.0019153]
[1760315628423,3.43150689,4144.6,4144.5,0.0019153]
[1760315628627,3.18980689,4144.6,4144.5,0.0019153]
[1760315628824,0.43572105,4145.0,4144.6,0.7114]